[Event "FIDE WCCC U8 2018"]
[Site "Santiago de Compostela"]
[Date "2018.11.05"]
[Round "2"]
[White "Sowinski, Pawel"]
[Black "Schnaider, Ilan"]
[Result "1/2-1/2"]
[ECO "C01"]
[WhiteElo "1318"]
[BlackElo "1723"]
[Annotator "NA RC"]
[PlyCount "158"]
[EventDate "2018.11.04"]
[EventType "swiss"]
[EventCountry "ESP"]
[SourceTitle "playchess.com"]
[Source "ChessBase"]
[SourceQuality "1"]
[TimeControl "40/5400+30:1800+30"]

1. e4 {[%emt 0:00:00]} e6 {[%emt 0:00:00]} 2. d4 {[%emt 0:00:08]} d5 {[%emt 0:00:00]} 3. exd5 {[%emt 0:00:20]} exd5 {[%emt 0:00:11]} 4. Bd3 {[%emt 0:00:12]} Bd6 {[%emt 0:00:20]} 5. Nf3 {[%emt 0:00:08]} Bg4 {[%emt 0:00:18]} 6. O-O {[%emt 0:00:18]} Nf6 {[%emt 0:00:38]} 7. Re1+ {[%emt 0:00:12]} Be7 {[%emt 0:01:12]} 8. Qe2 {[%emt 0:01:09]} Nc6 {[%emt 0:00:17]} 9. c3 {[%emt 0:00:48]} O-O {[%emt 0:00:18]} 10. Be3 {[%emt 0:01:13]} Re8 {[%emt 0:00:27]} 11. h3 {[%emt 0:01:01]} Bh5 {[%emt 0:00:17]} 12. Nbd2 {[%emt 0:00:20]} Qd7 {[%emt 0:03:30]} 13. Rad1 {[%emt 0:05:32]} Bd6 {[%emt 0:00:57]} 14. Nf1 {[%emt 0:03:18]} Re7 {[%emt 0:00:43]} 15. Ng3 {[%emt 0:00:12]} Bxg3 {[%emt 0:05:15]} 16. fxg3 {[%emt 0:00:09]} Rae8 {[%emt 0:00:15]} 17. Qf2 {[%emt 0:01:41]} Ne4 {[%emt 0:00:24]} 18. Bxe4 {[%emt 0:01:10]} dxe4 {[%emt 0:00:24]} 19. Nh4 {[%emt 0:03:59]} Bxd1 {[%emt 0:00:23]} 20. Rxd1 {[%emt 0:00:06]} Ne5 {[%emt 0:06:36]} 21. Rf1 {[%emt 0:01:34]} Nd3 {[%emt 0:00:25]} 22. Qe2 {[%emt 0:00:09]} Qe6 {[%emt 0:08:19]} 23. Nf5 {[%emt 0:00:44]} Rd7 {[%emt 0:01:04]} 24. Qg4 {[%emt 0:01:19]} Qg6 {[%emt 0:00:25]} 25. Nh6+ {[%emt 0:00:23]} gxh6 {[%emt 0:01:27]} 26. Qxd7 {[%emt 0:00:05]} Qe6 {[%emt 0:01:02]} 27. Qb5 {[%emt 0:02:26]} Qc6 {[%emt 0:03:04]} 28. Qf5 {[%emt 0:14:54]} Qg6 {[%emt 0:00:41]} 29. g4 {[%emt 0:04:21]} Qxf5 {[%emt 0:00:37]} 30. gxf5 {[%emt 0:02:28]} Nxb2 {[%emt 0:00:17]} 31. Rb1 {[%emt 0:00:30]} Nc4 {[%emt 0:00:15]} 32. Kf2 {[%emt 0:00:12]} b6 {[%emt 0:01:20]} 33. g4 {[%emt 0:00:14]} Kg7 {[%emt 0:00:16]} 34. Ke2 {[%emt 0:01:02]} Nd6 {[%emt 0:01:54]} 35. a4 {[%emt 0:05:56]} h5 {[%emt 0:00:34]} 36. Bf4 {[%emt 0:01:36]} hxg4 {[%emt 0:00:47]} 37. hxg4 {[%emt 0:00:06]} Re7 {[%emt 0:05:41]} 38. Be5+ {[%emt 0:01:37]} f6 {[%emt 0:04:05]} 39. g5 {[%emt 0:00:08]} Ne8 {[%emt 0:01:00]} 40. gxf6+ {[%emt 0:00:00]} Nxf6 {[%emt 0:00:00]} 41. Ke3 {[%emt 0:01:43]} Kf7 {[%emt 0:00:55]} 42. Rc1 {[%emt 0:01:07]} c6 {[%emt 0:02:11]} 43. a5 {[%emt 0:01:01]} c5 {[%emt 0:01:59]} 44. axb6 {[%emt 0:00:15]} axb6 {[%emt 0:00:24]} 45. Kf4 {[%emt 0:08:12]} h6 {[%emt 0:01:49]} 46. Bxf6 {[%emt 0:04:41]} Kxf6 {[%emt 0:00:22]} 47. Rh1 {[%emt 0:00:05]} Kg7 {[%emt 0:02:31]} 48. d5 {[%emt 0:01:15]} e3 {[%emt 0:00:25]} 49. d6 {[%emt 0:01:53]} Re8 {[%emt 0:00:09]} 50. d7 {[%emt 0:02:59]} Rd8 {[%emt 0:00:14]} 51. f6+ {[%emt 0:00:50]} Kxf6 {[%emt 0:00:26]} 52. Rxh6+ {[%emt 0:00:16]} Ke7 {[%emt 0:00:12]} 53. Kxe3 {[%emt 0:02:39]} Kxd7 {[%emt 0:01:25]} 54. Rxb6 {[%emt 0:00:07]} Kc7 {[%emt 0:00:16]} 55. Re6 {[%emt 0:01:20]} Rd7 {[%emt 0:00:33]} 56. c4 {[%emt 0:01:37]} Rd1 {[%emt 0:00:27]} 57. Re4 {[%emt 0:01:36]} Rd7 {[%emt 0:00:19]} 58. Rf4 {[%emt 0:01:05]} Rd1 {[%emt 0:00:09]} 59. Rf2 {[%emt 0:00:17]} Rd7 {[%emt 0:00:12]} 60. Ra2 {[%emt 0:00:23]} Rd4 {[%emt 0:00:16]} 61. Rc2 {[%emt 0:00:11]} Rd7 {[%emt 0:00:12]} 62. Ke4 {[%emt 0:02:53]} Rd4+ {[%emt 0:00:32]} 63. Ke5 {[%emt 0:00:10]} Rd1 {[%emt 0:00:17]} 64. Re2 {[%emt 0:00:22]} Kb6 {[%emt 0:00:28]} 65. Rb2+ {[%emt 0:00:17]} Kc7 {[%emt 0:00:12]} 66. Rb3 {[%emt 0:00:37]} Rd4 {[%emt 0:00:15]} 67. Rc3 {[%emt 0:00:15]} Rd1 {[%emt 0:00:05]} 68. Ke6 {[%emt 0:01:31]} Rd4 {[%emt 0:00:12]} 69. Rc2 {[%emt 0:00:50]} Rd1 {[%emt 0:00:16]} 70. Ke5 {[%emt 0:00:27]} Rd4 {[%emt 0:00:25]} 71. Rc3 {[%emt 0:00:10]} Rd1 {[%emt 0:00:07]} 72. Re3 {[%emt 0:00:07]} Rd4 {[%emt 0:00:11]} 73. Re4 {[%emt 0:00:12]} Rd1 {[%emt 0:00:40]} 74. Rh4 {[%emt 0:00:25]} Rd2 {[%emt 0:00:26]} 75. Rh7+ {[%emt 0:01:18]} Kc6 {[%emt 0:00:11]} 76. Rh6+ {[%emt 0:00:11]} Kc7 {[%emt 0:00:07]} 77. Rh4 {[%emt 0:00:44]} Rd1 {[%emt 0:00:12]} 78. Re4 {[%emt 0:00:03]} Kc6 {[%emt 0:00:18]} 79. Rf4 {[%emt 0:00:22]} Re1+ {[%emt 0:00:34] Ke4} 1/2-1/2

[Event "FIDE WCCC U8 2018"]
[Site "Santiago de Compostela"]
[Date "2018.11.05"]
[Round "2"]
[White "Mompel Ferruz, Xavier"]
[Black "Lu, Miaoyi"]
[Result "0-1"]
[ECO "D10"]
[WhiteElo "1309"]
[BlackElo "1717"]
[Annotator "NA RC"]
[PlyCount "116"]
[EventDate "2018.11.04"]
[EventType "swiss"]
[EventCountry "ESP"]
[SourceTitle "playchess.com"]
[Source "ChessBase"]
[SourceQuality "1"]
[TimeControl "40/5400+30:1800+30"]

1. d4 d5 2. c4 c6 3. Qc2 Nf6 4. Nf3 dxc4 5. Qxc4 Bf5 6. Ne5 Be6 7. Qd3 Nbd7 8. e4 Nxe5 9. dxe5 Qxd3 10. Bxd3 Nd7 11. Bf4 O-O-O 12. Nc3 Nxe5 13. Bxe5 Rxd3 14. Na4 Bc4 15. Nc5 Rd8 16. b3 Ba6 17. Nxa6 bxa6 18. Rd1 Rxd1+ 19. Kxd1 f6 20. Bd4 Kb7 21. Bc5 e5 22. Bxf8 Rxf8 23. Ke2 Rd8 24. Rd1 Rxd1 25. Kxd1 Kb6 26. Kd2 Kc5 27. Kc3 a5 28. a4 g6 29. g4 g5 30. h3 h6 31. f3 a6 32. Kd3 Kb4 33. Kc2 c5 34. Kb2 c4 35. bxc4 Kxc4 36. Ka3 Kc3 37. Ka2 Kb4 38. Kb2 Kxa4 39. Ka2 Kb4 40. Kb2 Kc4 41. Kc2 a4 42. Kb2 Kd3 43. Ka3 Ke3 44. Kxa4 Kxf3 45. Ka5 Kxe4 46. Kxa6 Kf4 47. Kb6 e4 48. Kc6 e3 49. Kd6 e2 50. Ke7 e1=Q+ 51. Kxf6 Qe5+ 52. Kg6 Qe6+ 53. Kh5 Kg3 54. h4 Qxg4+ 55. Kxh6 gxh4 56. Kh7 h3 57. Kh6 h2 58. Kh7 h1=Q# 0-1

[Event "FIDE WCCC U8 2018"]
[Site "Santiago de Compostela"]
[Date "2018.11.05"]
[Round "2"]
[White "Gerelt-Od Boldbaatar"]
[Black "Udipi, Kala Kishan"]
[Result "0-1"]
[ECO "B90"]
[WhiteElo "1293"]
[BlackElo "1653"]
[Annotator "NA RC"]
[PlyCount "118"]
[EventDate "2018.11.04"]
[EventType "swiss"]
[EventCountry "ESP"]
[SourceTitle "playchess.com"]
[Source "ChessBase"]
[SourceQuality "1"]
[TimeControl "40/5400+30:1800+30"]

1. e4 {[%emt 0:00:02]} c5 {[%emt 0:00:00]} 2. Nf3 {[%emt 0:00:48]} d6 {[%emt 0:00:00]} 3. d4 {[%emt 0:00:35]} cxd4 {[%emt 0:00:00]} 4. Nxd4 {[%emt 0:00:44]} Nf6 {[%emt 0:00:00]} 5. Nc3 {[%emt 0:00:48]} a6 {[%emt 0:00:00]} 6. Nb3 {[%emt 0:01:17]} e6 {[%emt 0:00:43]} 7. g4 {[%emt 0:01:28]} b5 {[%emt 0:04:22]} 8. Bg2 {[%emt 0:03:09]} Bb7 {[%emt 0:01:04]} 9. g5 {[%emt 0:02:43]} Nfd7 {[%emt 0:01:22]} 10. h4 {[%emt 0:04:18]} Be7 {[%emt 0:05:27]} 11. f4 {[%emt 0:04:06]} h6 {[%emt 0:09:50]} 12. Qg4 {[%emt 0:10:20]} h5 {[%emt 0:07:50]} 13. Qh3 {[%emt 0:03:21]} b4 {[%emt 0:02:47]} 14. Ne2 {[%emt 0:03:21]} e5 {[%emt 0:02:47]} 15. f5 {[%emt 0:03:55]} f6 {[%emt 0:02:13]} 16. g6 {[%emt 0:02:35]} Nc5 {[%emt 0:01:54]} 17. Nxc5 {[%emt 0:01:05]} dxc5 {[%emt 0:00:07]} 18. Qb3 {[%emt 0:00:43]} Rf8 {[%emt 0:05:23]} 19. Bh6 {[%emt 0:02:06]} gxh6 {[%emt 0:05:53]} 20. g7 {[%emt 0:00:17]} Nc6 {[%emt 0:01:18]} 21. gxf8=Q+ {[%emt 0:00:55]} Kxf8 {[%emt 0:01:00]} 22. Rd1 {[%emt 0:05:29]} Nd4 {[%emt 0:00:56]} 23. Nxd4 {[%emt 0:00:24]} exd4 {[%emt 0:01:36]} 24. Bf3 {[%emt 0:00:10]} Qc7 {[%emt 0:00:55]} 25. Rg1 {[%emt 0:00:25]} c4 {[%emt 0:00:18]} 26. Qa4 {[%emt 0:15:34]} Bc6 {[%emt 0:00:19]} 27. Rd2 {[%emt 0:01:03]} Bxa4 {[%emt 0:03:37]} 28. Rdg2 {[%emt 0:02:47]} Ke8 {[%emt 0:01:42]} 29. Rg8+ {[%emt 0:00:32]} Bf8 {[%emt 0:00:47]} 30. Bxh5+ {[%emt 0:01:11]} Ke7 {[%emt 0:00:23]} 31. R1g7+ {[%emt 0:02:28]} Bxg7 {[%emt 0:00:14]} 32. Rxg7+ {[%emt 0:00:07]} Kd6 {[%emt 0:00:15]} 33. Rxc7 {[%emt 0:00:19]} Kxc7 {[%emt 0:00:07]} 34. b3 {[%emt 0:00:06]} cxb3 {[%emt 0:00:19]} 35. axb3 {[%emt 0:00:15]} Bc6 {[%emt 0:00:14]} 36. Bf3 {[%emt 0:01:15]} Re8 {[%emt 0:00:12]} 37. Kd2 {[%emt 0:00:49]} Bxe4 {[%emt 0:00:12]} 38. Be2 {[%emt 0:00:15]} Bxc2 {[%emt 0:00:21]} 39. Bh5 {[%emt 0:00:17]} Re5 {[%emt 0:00:54]} 40. Kxc2 {[%emt 0:00:00]} Rxf5 {[%emt 0:00:00]} 41. Bg6 {[%emt 0:00:28]} Rf3 {[%emt 0:00:51]} 42. Bd3 {[%emt 0:02:10]} Rxd3 {[%emt 0:03:01]} 43. Kxd3 {[%emt 0:00:07]} Kd6 {[%emt 0:00:08]} 44. Kxd4 {[%emt 0:00:08]} f5 {[%emt 0:00:11]} 45. Kc4 {[%emt 0:00:05]} a5 {[%emt 0:01:10]} 46. Kd4 {[%emt 0:00:16]} h5 {[%emt 0:00:07]} 47. Ke3 {[%emt 0:02:07]} Ke5 {[%emt 0:00:24]} 48. Kf3 {[%emt 0:00:09]} f4 {[%emt 0:00:10]} 49. Kf2 {[%emt 0:00:10]} Ke4 {[%emt 0:00:34]} 50. Ke2 {[%emt 0:00:07]} f3+ {[%emt 0:00:23]} 51. Kf2 {[%emt 0:00:13]} Kf4 {[%emt 0:00:08]} 52. Kf1 {[%emt 0:00:06]} Ke3 {[%emt 0:00:27]} 53. Ke1 {[%emt 0:00:09]} f2+ {[%emt 0:00:08]} 54. Kf1 {[%emt 0:00:06]} a4 {[%emt 0:00:38]} 55. bxa4 {[%emt 0:00:10]} b3 {[%emt 0:00:06]} 56. a5 {[%emt 0:00:18]} b2 {[%emt 0:00:06]} 57. a6 {[%emt 0:00:05]} b1=Q+ {[%emt 0:00:16]} 58. Kg2 {[%emt 0:00:10]} Qg1+ {[%emt 0:00:17]} 59. Kh3 {[%emt 0:00:34]} f1=Q# {[%emt 0:00:30]} 0-1

[Event "FIDE WCCC U8 2018"]
[Site "Santiago de Compostela"]
[Date "2018.11.08"]
[Round "4"]
[White "Begmuratov, Khumoyun"]
[Black "Mamedov, Edgar"]
[Result "1/2-1/2"]
[ECO "B40"]
[WhiteElo "1880"]
[BlackElo "1599"]
[Annotator "NA RC"]
[PlyCount "153"]
[EventDate "2018.11.04"]
[EventType "swiss"]
[EventCountry "ESP"]
[SourceTitle "playchess.com"]
[Source "ChessBase"]
[SourceQuality "1"]
[TimeControl "40/5400+30:1800+30"]

{[%evp 8,136,-1,-7,3,32767,-9,-20,-4,-22,-16,-21,32767,32767,20,-3,-1,0,0,0,32767,12,16,0,19,26,29,7,98,129,115,129,32767,32767,32767,32767,221,223,283,366,293,329,294,267,219,242,278,288,32767,343,366,32767,350,367,354,32767,32767,32767,32767,32767,548,32767,619,327,32767,0,0,0,0,0,0,0,0,0,0,0,0,0,0,0,0,0,380,0,0,0,0,0,0,32767,32767,21,55,2,3,0,0,0,0,0,46,43,53,35,70,0,0,7,59,98,24,26,24,32767,32767,32767,32767,32767,32767,7,32767,32767,0,0,0,32767,0,0,0,0,0]} 1. e4 {[%emt 0:00:00]} c5 {[%emt 0:00:25]} 2. Nf3 {[%emt 0:00:21]} e6 {[%emt 0:01:06]} 3. Qe2 {[%emt 0:03:47]} Nc6 {[%emt 0:02:57]} 4. g3 {[%emt 0:00:26]} Nge7 {[%emt 0:01:51]} 5. Bg2 {[%emt 0:01:31]} d6 {[%emt 0:00:49]} 6. O-O {[%emt 0:00:28]} g6 {[%emt 0:00:46]} 7. d3 {[%emt 0:04:22]} Bg7 {[%emt 0:00:36]} 8. c3 {[%emt 0:00:32]} O-O {[%emt 0:06:23]} 9. Be3 {[%emt 0:03:59] LiveBook: 10 Games} b6 {[%emt 0:02:41] C00: French: Unusual White 2nd moves} (9... e5 10. Qd2 f5 11. Bh6 f4 12. Bxg7 Kxg7 13. d4 cxd4 14. cxd4 Bg4 15. dxe5 dxe5 16. Qxd8 Raxd8 17. Nbd2 Rd3 18. h3 Be6 19. Rfc1 fxg3 20. fxg3 h6 21. b4 Rc8 22. a3 {½-½ (22) Bokros,A (2484)-Hoang,T (2478) Hungary 2014}) 10. d4 {[%emt 0:12:47]} cxd4 {[%emt 0:01:27]} 11. cxd4 $146 {[%emt 0:00:27]} ({Predecessor:} 11. Nxd4 Nxd4 12. cxd4 d5 13. Nc3 Bb7 14. e5 Nf5 15. Bh3 Rc8 16. Qd2 f6 17. f4 Qd7 18. Rfe1 fxe5 19. fxe5 Ba6 20. Rac1 Rf7 {½-½ (20) Kotainy,J (2326)-Wilde,P (2235) Germany 2016}) 11... d5 {[%emt 0:00:46]} 12. e5 {[%emt 0:15:16]} f6 {[%emt 0:08:59]} 13. exf6 {[%emt 0:01:00]} Bxf6 {[%emt 0:02:44]} 14. Nc3 {[%emt 0:09:39]} Nf5 {[%emt 0:02:41]} 15. Qd2 {[%emt 0:02:08]} Bd7 {[%emt 0:01:24]} 16. Rfe1 {[%emt 0:03:48]} Rf7 {[%emt 0:09:50]} 17. Bh3 {[%emt 0:05:58]} Qf8 {[%emt 0:07:05]} (17... Bg7 $11 {remains equal.}) 18. Bxf5 $1 {[%emt 0:04:04]} gxf5 {[%emt 0:00:35]} 19. Bf4 {[%emt 0:01:26]} Qg7 {[%emt 0:04:45]} 20. Rad1 {[%emt 0:04:36]} Kh8 {[%emt 0:04:45]} 21. Nb5 {[%emt 0:02:16]} Be7 {[%emt 0:09:04]} 22. a3 {[%emt 0:02:12]} Rc8 {[%emt 0:06:26]} 23. Ne5 {[%emt 0:01:02]} Nxe5 24. Bxe5 {[%emt 0:00:15]} Rf6 {[%emt 0:07:40]} 25. Nc3 {[%emt 0:03:40]} ({Weaker is} 25. Nxa7 Ra8 $16) ({Don't take} 25. Bxf6 $6 Qxf6 26. Qd3 a5 $18) 25... Kg8 {[%emt 0:00:28]} 26. Bxf6 {[%emt 0:00:12]} Bxf6 {[%emt 0:00:19]} 27. Ne2 {[%emt 0:02:48]} Qe7 {[%emt 0:04:18]} 28. Nf4 {[%emt 0:00:45]} Qf7 {[%emt 0:02:23]} 29. Rc1 {[%emt 0:00:53]} Rc4 {[%emt 0:01:48]} 30. Rxc4 {[%emt 0:00:37]} dxc4 {[%emt 0:00:05]} 31. Qe3 {[%emt 0:03:01]} Bg5 {[%emt 0:00:25]} 32. Qe5 {[%emt 0:00:23]} Bxf4 {[%emt 0:00:13]} 33. Qxf4 {[%emt 0:00:09]} Bc6 {[%emt 0:00:36]} 34. Qb8+ {[%emt 0:01:28]} Qf8 {[%emt 0:07:17]} 35. Qxa7 {[%emt 0:01:28]} Qd6 {[%emt 0:01:11]} 36. Rf1 $2 {[%emt 0:07:11]} (36. Re3 $18) 36... Qd5 {[%emt 0:01:04]} 37. f3 {[%emt 0:00:15]} Qxd4+ {[%emt 0:00:05]} 38. Kg2 {[%emt 0:00:58]} Qd2+ $1 {[%emt 0:01:21]} 39. Rf2 {[%emt 0:02:04]} Bxf3+ $1 {[%emt 0:00:20]} 40. Kxf3 {[%emt 0:00:00]} Qd3+ {[%emt 0:00:00]} 41. Kg2 {[%emt 0:03:34]} Qe4+ {[%emt 0:00:25]} 42. Kf1 {[%emt 0:00:26]} Qb1+ {[%emt 0:02:39]} 43. Ke2 {[%emt 0:00:46]} Qc2+ {[%emt 0:00:37]} 44. Ke3 {[%emt 0:02:02]} Qd3+ $2 {[%emt 0:00:23]} (44... Qe4+ $11 45. Kd2 Qd5+ 46. Ke1 Qh1+ 47. Rf1 Qe4+ 48. Kd2 (48. Kf2 Qd4+ 49. Kg2 Qe4+ 50. Kg1 Qe3+ 51. Rf2 Qe1+ 52. Rf1 Qe3+ 53. Rf2 Qe1+ 54. Rf1 Qe3+ $11) 48... Qd3+ 49. Ke1 Qe3+ 50. Kd1 Qd3+ 51. Ke1 Qe3+ 52. Kd1 Qd3+ 53. Ke1) 45. Kf4 {[%emt 0:00:08]} Qd4+ {[%emt 0:00:08]} 46. Kg5 {[%emt 0:00:05]} Qxf2 {[%emt 0:00:58]} 47. Qb8+ {[%emt 0:01:15]} Kf7 {[%emt 0:04:23]} 48. Qc7+ {[%emt 0:01:50]} Kg8 {[%emt 0:03:17]} 49. Qxc4 $2 {[%emt 0:02:43]} (49. Qc8+ $18 Kg7 50. Qd7+ (50. Qxe6 Qxh2 51. Qe5+ Kf8 $14) 50... Kf8 51. Qd8+ (51. Qxe6 Qxb2 52. Qxf5+ Ke7 $14) 51... Kf7 52. Qf6+ Ke8 53. Qxe6+ Kd8 54. Qg8+ (54. Qxc4 Qxh2 55. Qg8+ Kc7 $16) (54. Qxf5 Qxb2 55. Qd5+ Ke7 $14) 54... Kc7 55. Qxh7+ (55. Qxc4+ Kb7 $16) 55... Kd6 56. Qg6+ (56. Qxf5 Qxb2 57. Qf8+ Kd5 $11) 56... Kc7 57. Qg7+ (57. Qxf5 Qxh2 58. Qf4+ Kb7 $16) 57... Kc8 58. Qg8+ Kb7 59. Qd5+ (59. Qxc4 Qxh2 60. Qd5+ Ka7 $16) 59... Ka7 60. Qd7+ (60. Qxc4 Qxh2 61. Qc7+ Ka6 $18) 60... Kb8 61. Qd6+ (61. Qxf5 Qxh2 62. Qe5+ Kb7 $16) 61... Ka7 62. Qc7+ Ka8 63. Qxc4) 49... Qd2+ {[%emt 0:05:55]} 50. Kf6 {[%emt 0:01:12]} Qh6+ {[%emt 0:00:49]} 51. Ke7 {[%emt 0:00:17]} Qf8+ {[%emt 0:00:42]} 52. Kd7 {[%emt 0:00:31]} Qg7+ {[%emt 0:00:37]} 53. Kc6 {[%emt 0:00:52]} Qxb2 {[%emt 0:00:20]} 54. Qxe6+ {[%emt 0:00:05]} Kg7 {[%emt 0:00:11]} 55. Qe7+ {[%emt 0:00:30]} Kg8 {[%emt 0:00:51]} 56. Qg5+ {[%emt 0:00:27]} Kh8 {[%emt 0:00:28]} 57. Qe3 {[%emt 0:00:31]} b5 {[%emt 0:01:45]} 58. Qe8+ {[%emt 0:01:28]} Kg7 {[%emt 0:00:09]} 59. Qe7+ {[%emt 0:00:20]} Kg6 {[%emt 0:01:43]} 60. Qe6+ {[%emt 0:02:24]} Kg7 {[%emt 0:00:12]} 61. Qxf5 {[%emt 0:01:12]} Qxa3 {[%emt 0:00:12]} 62. Qxb5 {[%emt 0:00:24]} Qc1+ {[%emt 0:01:00]} 63. Kd7 {[%emt 0:00:45]} Qd2+ {[%emt 0:00:14]} 64. Ke6 {[%emt 0:00:14]} Qh6+ {[%emt 0:01:29]} 65. Ke7 {[%emt 0:00:12]} Qe3+ {[%emt 0:00:30]} 66. Kd6 {[%emt 0:00:47]} Qd2+ {[%emt 0:00:18]} 67. Kc6 {[%emt 0:00:10]} Qxh2 {[%emt 0:00:19]} 68. Qg5+ {[%emt 0:00:05]} Kf7 $11 {[%emt 0:00:09]} 69. Qf5+ {[%emt 0:00:08]} Kg7 {[%emt 0:00:06]} 70. g4 {[%emt 0:00:11]} Qg2+ {[%emt 0:00:38]} 71. Kd6 {[%emt 0:00:07]} Qg3+ {[%emt 0:00:13]} 72. Ke6 {[%emt 0:00:09]} Qe3+ {[%emt 0:00:06]} 73. Qe5+ {[%emt 0:00:04]} Qxe5+ {[%emt 0:00:06]} 74. Kxe5 {[%emt 0:00:04]} Kg6 {[%emt 0:00:08]} 75. Kf4 {[%emt 0:00:04]} h5 {[%emt 0:00:14]} 76. gxh5+ {[%emt 0:00:04]} Kxh5 {[%emt 0:00:07]} 77. Ke4 1/2-1/2

[Event "FIDE WCCC U8 2018"]
[Site "Santiago de Compostela"]
[Date "2018.11.08"]
[Round "4"]
[White "Hajdu, Marton Abris"]
[Black "Chennareddy, Yuvraj"]
[Result "0-1"]
[ECO "C28"]
[WhiteElo "1755"]
[BlackElo "1497"]
[Annotator "NA"]
[PlyCount "60"]
[EventDate "2018.11.04"]
[EventType "swiss"]
[EventCountry "ESP"]
[SourceTitle "playchess.com"]
[Source "ChessBase"]
[SourceQuality "1"]
[TimeControl "40/5400+30:1800+30"]

1. e4 {[%emt 0:00:00]} e5 {[%emt 0:00:00]} 2. Bc4 {[%emt 0:00:09]} Nc6 {[%emt 0:00:19]} 3. Nc3 {[%emt 0:00:08]} Nf6 {[%emt 0:02:33]} 4. d3 {[%emt 0:00:18]} Bc5 {[%emt 0:00:17]} 5. Be3 {[%emt 0:00:11]} Bb6 {[%emt 0:00:05]} 6. h3 {[%emt 0:02:26]} d6 {[%emt 0:00:25]} 7. Nge2 {[%emt 0:01:21]} Be6 {[%emt 0:02:18]} 8. Bxb6 {[%emt 0:02:11]} axb6 {[%emt 0:00:08]} 9. O-O {[%emt 0:01:22]} O-O {[%emt 0:01:13]} 10. f4 {[%emt 0:07:01]} Bxc4 {[%emt 0:01:06]} 11. dxc4 {[%emt 0:00:12]} exf4 {[%emt 0:00:30]} 12. Nxf4 {[%emt 0:00:24]} Re8 {[%emt 0:00:12]} 13. Nfd5 {[%emt 0:11:02]} Nxd5 {[%emt 0:00:30]} 14. exd5 {[%emt 0:00:30]} Ne5 {[%emt 0:00:30]} 15. b3 {[%emt 0:00:54]} Qg5 {[%emt 0:07:53]} 16. Qd4 {[%emt 0:07:58]} Rf8 {[%emt 0:04:49]} 17. Ne4 {[%emt 0:02:42]} Qg6 {[%emt 0:00:14]} 18. a4 {[%emt 0:10:43]} f5 {[%emt 0:04:43]} 19. Nd2 {[%emt 0:02:55]} f4 {[%emt 0:01:04]} 20. Rxf4 {[%emt 0:05:57]} Rxf4 {[%emt 0:00:17]} 21. Qxf4 {[%emt 0:00:09]} Rf8 {[%emt 0:00:22]} 22. Qe4 {[%emt 0:01:28]} Nf3+ {[%emt 0:00:30]} 23. Qxf3 {[%emt 0:00:30]} Rxf3 {[%emt 0:00:30]} 24. Nxf3 {[%emt 0:00:30]} Qxc2 {[%emt 0:00:00]} 25. a5 {[%emt 0:01:38]} Qxb3 {[%emt 0:00:12]} 26. axb6 {[%emt 0:00:13]} Qxb6+ {[%emt 0:00:07]} 27. Kh1 {[%emt 0:00:06]} h6 {[%emt 0:00:20]} 28. Rc1 {[%emt 0:01:51]} Qc5 {[%emt 0:00:11]} 29. Nd2 {[%emt 0:00:20]} b5 {[%emt 0:00:32]} 30. Rc2 {[%emt 0:01:33]} bxc4 {[%emt 0:00:51]} 0-1

[Event "FIDE WCCC U8 2018"]
[Site "Santiago de Compostela"]
[Date "2018.11.08"]
[Round "4"]
[White "Grooten, Tommy"]
[Black "Sevig, Mert Can"]
[Result "0-1"]
[ECO "B35"]
[WhiteElo "1649"]
[BlackElo "1442"]
[Annotator "NA RC"]
[PlyCount "110"]
[EventDate "2018.11.04"]
[EventType "swiss"]
[EventCountry "ESP"]
[SourceTitle "playchess.com"]
[Source "ChessBase"]
[SourceQuality "1"]
[TimeControl "40/5400+30:1800+30"]

1. e4 {[%emt 0:00:00]} c5 {[%emt 0:00:00]} 2. Nf3 {[%emt 0:00:00]} g6 {[%emt 0:00:00]} 3. d4 {[%emt 0:00:00]} cxd4 {[%emt 0:00:00]} 4. Nxd4 {[%emt 0:00:00]} Bg7 {[%emt 0:00:00]} 5. Nc3 {[%emt 0:00:16]} Nc6 {[%emt 0:00:00]} 6. Be3 {[%emt 0:00:08]} Nf6 {[%emt 0:00:06]} 7. Bc4 {[%emt 0:00:49]} O-O {[%emt 0:00:26]} 8. f3 {[%emt 0:00:11]} Qb6 {[%emt 0:01:03]} 9. Bb3 {[%emt 0:12:49]} Nxe4 {[%emt 0:03:08]} 10. fxe4 {[%emt 0:01:09]} Nxd4 {[%emt 0:01:41]} 11. Nd5 {[%emt 0:05:10]} Qe6 {[%emt 0:09:09]} 12. Bxd4 {[%emt 0:02:16]} Qxe4+ {[%emt 0:00:09]} 13. Be3 {[%emt 0:00:10]} e6 {[%emt 0:00:17]} 14. Ne7+ {[%emt 0:00:19]} Kh8 {[%emt 0:00:09]} 15. Qf3 {[%emt 0:00:44]} Qb4+ {[%emt 0:00:30]} 16. c3 {[%emt 0:01:07]} Qxe7 {[%emt 0:00:17]} 17. O-O-O {[%emt 0:00:47]} d5 {[%emt 0:01:51]} 18. Qf2 {[%emt 0:00:37]} b6 {[%emt 0:02:02]} 19. Rhe1 {[%emt 0:01:00]} Bb7 {[%emt 0:03:02]} 20. Bd4 {[%emt 0:01:24]} Rfd8 {[%emt 0:04:44]} 21. Rf1 {[%emt 0:01:33]} Rd7 {[%emt 0:02:49]} 22. Ba4 {[%emt 0:00:39]} Rc7 {[%emt 0:00:50]} 23. Bxg7+ {[%emt 0:01:58]} Kxg7 {[%emt 0:00:03]} 24. Qd4+ {[%emt 0:00:09]} Kg8 {[%emt 0:00:46]} 25. Rde1 {[%emt 0:00:25]} Rc4 {[%emt 0:01:25]} 26. Qe5 {[%emt 0:00:26]} Rxa4 {[%emt 0:00:57]} 27. Re3 {[%emt 0:00:20]} Re4 {[%emt 0:00:55]} 28. Rxe4 {[%emt 0:00:28]} dxe4 {[%emt 0:00:02]} 29. h4 {[%emt 0:01:28]} Ba6 {[%emt 0:04:22]} 30. Rh1 {[%emt 0:01:05]} f5 {[%emt 0:00:52]} 31. h5 {[%emt 0:01:05]} Bd3 {[%emt 0:06:29]} 32. b3 {[%emt 0:02:27]} Rd8 {[%emt 0:01:40]} 33. hxg6 {[%emt 0:01:26]} Qa3+ {[%emt 0:00:38]} 34. Kd2 {[%emt 0:00:06]} Qb2+ {[%emt 0:00:33]} 35. Ke3 {[%emt 0:01:16]} Qe2+ {[%emt 0:00:11]} 36. Kf4 {[%emt 0:00:09]} Qf2+ {[%emt 0:00:06]} 37. Kg5 {[%emt 0:00:09]} Qxg2+ {[%emt 0:00:18]} 38. Kf6 {[%emt 0:00:46]} Rf8+ {[%emt 0:00:31]} 39. Ke7 {[%emt 0:01:38]} Qg5+ {[%emt 0:00:08]} 40. Kd7 {[%emt 0:00:00]} Qd8+ {[%emt 0:00:00]} 41. Kc6 {[%emt 0:01:52]} Qc8+ {[%emt 0:02:09]} 42. Kd6 {[%emt 0:00:31]} Rd8+ {[%emt 0:00:35]} 43. Ke7 {[%emt 0:00:10]} Rd7+ {[%emt 0:00:20]} 44. Kxe6 {[%emt 0:01:41]} Rf7+ {[%emt 0:00:19]} 45. Kd5 {[%emt 0:00:36]} Rd7+ {[%emt 0:01:00]} 46. Ke6 {[%emt 0:00:14]} Qc6+ {[%emt 0:04:23]} 47. Kxf5 {[%emt 0:00:10]} Qxg6+ {[%emt 0:01:35]} 48. Kf4 {[%emt 0:00:11]} Rf7+ {[%emt 0:00:25]} 49. Ke3 {[%emt 0:00:07]} Rf3+ {[%emt 0:00:10]} 50. Kd4 {[%emt 0:00:07]} Qg7 {[%emt 0:00:23]} 51. c4 {[%emt 0:01:25]} Qxe5+ {[%emt 0:00:51]} 52. Kxe5 {[%emt 0:00:08]} e3 {[%emt 0:00:14]} 53. Re1 {[%emt 0:00:17]} e2 {[%emt 0:00:08]} 54. b4 {[%emt 0:00:10]} Rf1 {[%emt 0:00:07]} 55. Rxe2 {[%emt 0:00:05]} Bxe2 0-1